[Event "UK vs Ukraine Challenge Match 2023"]
[Site "London"]
[Date "2023.03.21"]
[Round "1.1"]
[White "Volokitin, Andrei"]
[Black "Adams, Michael"]
[Result "1/2-1/2"]
[ECO "C54"]
[WhiteElo "2665"]
[BlackElo "2687"]
[Annotator "TA"]
[PlyCount "98"]
[EventDate "2023.03.15"]
[EventType "match"]
[EventCountry "ENG"]
[SourceTitle "playchess.com"]
[Source "ChessBase"]
[SourceQuality "1"]
[TimeControl "40/6000+30:3000+30"]

{[%evp 10,98,19,15,11,16,24,17,16,8,11,4,8,9,11,8,9,7,8,11,17,9,25,21,15,2,25,0,0,-12,0,0,0,0,0,0,0,-29,18,7,8,-58,0,0,0,0,0,0,0,0,0,-7,0,0,0,0,0,0,0,0,0,-23,-14,-12,-30,-27,-17,-22,-16,-25,-38,-43,-50,-60,-50,-59,-43,-120,0,0,0,0,0,0,0,0,0,0,0,0,0]} 1. e4 {[%emt 0:00:07]} e5 {[%emt 0:00:09]} 2. Nf3 {[%emt 0:00:12]} Nc6 {[%emt 0:00:08]} 3. Bc4 {[%emt 0:00:17]} Bc5 {[%emt 0:00:12]} 4. O-O {[%emt 0:00:39]} d6 {[%emt 0:02:51]} 5. c3 {[%emt 0:02:43]} Nf6 {[%emt 0:00:11]} 6. d3 {[%emt 0:10:24]} a5 {[%emt 0:00:53] C54: Giuoco Piano: 4 c3 Nf6, main lines with 5 d4 and 5 d3.} 7. Re1 {[%emt 0:00:31]} Ba7 {[%emt 0:01:07]} 8. Na3 {[%emt 0:00:26]} O-O {[%emt 0:00:51]} 9. h3 {[%emt 0:00:28]} h6 {[%emt 0:01:51]} 10. Nb5 {[%emt 0:03:49]} Bb6 {[%emt 0:00:31]} 11. Be3 {[%emt 0:00:34]} Bxe3 {[%emt 0:01:00]} 12. Rxe3 {[%emt 0:00:04]} Re8 {[%emt 0:01:59]} 13. Qb3 {[%emt 0:06:10]} Be6 {[%emt 0:01:29]} 14. Bxe6 {[%emt 0:01:09]} Rxe6 {[%emt 0:00:28] [#]} 15. c4 $146 {[%emt 0:00:27]} ({Predecessor:} 15. d4 Re8 16. d5 Ne7 17. c4 Nd7 18. Qc2 Nc5 19. b3 Rf8 20. Nh4 c6 21. dxc6 bxc6 {½-½ Nepomniachtchi,I (2766)-Firouzja,A (2793) Zagreb SuperUnited Rapid 2022 (2)}) 15... a4 {[%emt 0:24:00]} 16. Qd1 {[%emt 0:02:58]} Qd7 {[%emt 0:03:24]} 17. Rc1 {[%emt 0:12:34]} Ra6 {[%emt 0:02:32]} 18. Qe2 {[%emt 0:23:28]} Nh5 {[%emt 0:14:34]} 19. g3 {[%emt 0:06:41] [#]} Nf4 $1 {[%emt 0:04:07][%mdl 64] Double Attack} 20. Qf1 {[%emt 0:01:10]} ({Much worse is} 20. gxf4 exf4 21. Nfd4 (21. Nxc7 $2 Qxc7 22. d4 fxe3 $19) 21... Nxd4 22. Nxd4 Rg6+ 23. Kh2 fxe3 $17) 20... Rg6 {[%emt 0:00:49]} 21. Nh4 {[%emt 0:06:27]} Rg5 {[%emt 0:02:19]} 22. Kh2 {[%emt 0:01:39]} Rh5 {[%emt 0:11:10][%cal Oa4a3]} 23. Nf5 {[%emt 0:17:44]} Ne6 {[%emt 0:03:34]} (23... Rxh3+ $2 24. Kg1 $18) (23... Nxh3 {should be considered.} 24. g4 Rxf5 25. gxf5 Nf4) 24. f4 {[%emt 0:06:56][%cal Od3d4]} Rb6 {[%emt 0:05:27]} 25. Qf3 {[%emt 0:04:44] [#]} (25. Rc2 $11) 25... Rxf5 $1 {[%emt 0:08:52]} 26. exf5 $11 {[%emt 0:00:02]} Ned4 {[%emt 0:00:06]} 27. Nxd4 {[%emt 0:00:32]} Nxd4 {[%emt 0:00:05]} 28. Qf2 {[%emt 0:00:48]} exf4 {[%emt 0:01:53]} 29. gxf4 {[%emt 0:00:23][%cal Of5f6] aiming for f6!} Nxf5 {[%emt 0:00:09]} 30. Re4 {[%emt 0:00:40]} Kh7 {[%emt 0:03:57]} 31. Rc2 {[%emt 0:00:37]} c5 {[%emt 0:02:06]} 32. Rce2 {[%emt 0:00:26]} d5 {[%emt 0:03:04]} 33. cxd5 {[%emt 0:00:36]} Rd6 {[%emt 0:03:38]} 34. Re5 {[%emt 0:00:28]} f6 {[%emt 0:01:50]} 35. Re8 {[%emt 0:00:33]} (35. Re6 $5 {[%cal Rf2g2]}) 35... Rxd5 {[%emt 0:00:12]} 36. Qg2 {[%emt 0:00:31][%cal Oe8c8]} Rxd3 {[%emt 0:00:34]} 37. Qe4 $1 {[%emt 0:00:28][%cal Oe8e7]} Rd4 $36 {[%emt 0:01:37][%mdl 2048] White is under pressure.} 38. Qe6 {[%emt 0:00:29] Hoping for Qg8+.} Qxe6 {[%emt 0:01:38]} 39. R8xe6 {[%emt 0:00:03][%mdl 4096] Endgame KRR-KRN} b5 {[%emt 0:01:11]} 40. Rc6 {[%emt 0:00:00]} c4 {[%emt 0:00:00]} 41. Rf2 {[%emt 0:02:13]} b4 {[%emt 0:06:43]} 42. Rc5 {[%emt 0:13:03]} Ne3 {[%emt 0:08:00]} 43. f5 {[%emt 0:00:29] [#]} (43. Re2 $15 Rd3 44. Kg1) 43... b3 {[%emt 0:08:49]} ({Black should try} 43... Rd3 $1 $17 44. Rc8 h5) 44. axb3 {[%emt 0:08:18] The position is equal.} cxb3 {[%emt 0:00:07]} 45. Ra5 {[%emt 0:00:49]} h5 {[%emt 0:07:42]} 46. Re2 {[%emt 0:07:58]} Rd3 {[%emt 0:07:23]} 47. Rf2 {[%emt 0:00:55]} Rd4 {[%emt 0:02:11]} 48. Re2 {[%emt 0:00:11]} Rd3 {[%emt 0:03:29]} 49. Rf2 {[%emt 0:04:12]} Rd4 {[%emt 0:00:16] Weighted Error Value: White=0.07 (flawless) /Black=0.08 (flawless)} 1/2-1/2

[Event "UK vs Ukraine Challenge Match 2023"]
[Site "London"]
[Date "2023.03.23"]
[Round "2.1"]
[White "Adams, Michael"]
[Black "Volokitin, Andrei"]
[Result "0-1"]
[ECO "B51"]
[WhiteElo "2687"]
[BlackElo "2665"]
[Annotator "TA"]
[PlyCount "108"]
[EventDate "2023.03.15"]
[EventType "match"]
[EventCountry "ENG"]
[SourceTitle "playchess.com"]
[Source "ChessBase"]
[SourceQuality "1"]
[TimeControl "40/6000+30:3000+30"]

{[%evp 9,108,6,7,16,13,27,18,14,27,6,14,13,4,8,10,10,2,0,0,0,0,0,4,0,25,31,21,11,21,20,24,29,32,16,18,4,17,14,22,8,13,17,0,0,24,0,0,-12,-10,0,-2,-15,0,0,0,-25,-35,-28,-22,-34,-18,-31,-32,-70,-84,-133,-135,-139,-130,-141,-146,-134,-145,-432,-433,-403,-430,-573,-565,-535,-520,-573,-573,-541,-287,-288,-274,-283,-281,-268,-277,-270,-252,-237,-243,-359,-358,-801,-779,-593,-548]} 1. e4 {[%emt 0:00:04]} c5 {[%emt 0:00:07]} 2. Nf3 {[%emt 0:00:05]} d6 {[%emt 0:00:05]} 3. Bb5+ {[%emt 0:00:07]} Nd7 {[%emt 0:00:05]} 4. d4 {[%emt 0:00:06]} cxd4 {[%emt 0:00:07]} 5. Nxd4 {[%emt 0:00:05]} Ngf6 {[%emt 0:00:14]} 6. Bd3 {[%emt 0:00:15] B51: Sicilian: Moscow Variation (3 Bb5+) without 3...Bd7.} Nc5 {[%emt 0:00:36]} 7. Nc3 {[%emt 0:00:09]} g6 {[%emt 0:01:16]} 8. O-O {[%emt 0:01:11] The position is equal.} Bg7 {[%emt 0:01:14]} 9. Re1 {[%emt 0:00:37]} O-O {[%emt 0:27:12]} 10. Bf1 {[%emt 0:00:49]} b6 {[%emt 0:08:29]} 11. f3 {[%emt 0:04:23]} Bb7 {[%emt 0:04:50]} 12. Be3 {[%emt 0:02:13]} a6 {[%emt 0:01:29]} 13. Qd2 {[%emt 0:07:23]} Qc7 {[%emt 0:09:06]} 14. a4 {[%emt 0:03:18]} Rfd8 {[%emt 0:07:40]} 15. Bh6 {[%emt 0:07:16] [#]} Bh8 $146 {[%emt 0:27:10]} ({Predecessor:} 15... Ncd7 16. Rad1 e6 17. Bxg7 Kxg7 18. Qf2 h6 19. Qe3 Rac8 20. h3 e5 21. Nb3 Nc5 22. Nxc5 dxc5 {½-½ Deakin,C (2278)-Simplina,A (2204) WZ-ch sf20 email 2021}) 16. Qf2 {[%emt 0:04:29]} e5 {[%emt 0:05:43] [#]} 17. Nf5 {[%emt 0:11:54][%cal Of1c4]} d5 {[%emt 0:01:51] [#]} (17... gxf5 $2 18. Qg3+ $16) 18. exd5 {[%emt 0:02:15]} Nxd5 {[%emt 0:00:53] [#]} 19. Qh4 $1 {[%emt 0:13:32] Hoping for Nxd5.} Rd7 {[%emt 0:01:08]} (19... Re8 20. Nxd5) 20. Nxd5 {[%emt 0:11:31]} Bxd5 {[%emt 0:00:02] [#]} 21. Rad1 $1 {[%emt 0:06:31]} Re8 $1 {[%emt 0:00:26]} 22. Ne3 {[%emt 0:00:18]} Be6 {[%emt 0:01:39]} 23. Rxd7 {[%emt 0:01:51]} Qxd7 {[%emt 0:01:50]} 24. Rd1 {[%emt 0:02:16]} Qc7 {[%emt 0:02:48]} 25. b3 {[%emt 0:02:51]} Bg7 {[%emt 0:00:42]} 26. Bg5 {[%emt 0:01:55]} h5 {[%emt 0:01:46]} 27. Nc4 {[%emt 0:08:04]} Nb7 {[%emt 0:04:29]} 28. Kh1 {[%emt 0:05:00]} b5 {[%emt 0:00:43]} 29. axb5 {[%emt 0:01:50]} axb5 {[%emt 0:00:01]} 30. Ne3 {[%emt 0:00:07]} Qc5 {[%emt 0:00:12]} 31. b4 {[%emt 0:02:32]} Qb6 {[%emt 0:00:37]} 32. Qe1 {[%emt 0:04:02]} Nd6 {[%emt 0:00:59]} 33. Qd2 {[%emt 0:02:29]} Nc4 {[%emt 0:00:52]} 34. Bxc4 {[%emt 0:01:08]} bxc4 {[%emt 0:00:16]} 35. c3 {[%emt 0:00:08]} Qb5 {[%emt 0:00:31]} 36. Bd8 {[%emt 0:01:58]} e4 {[%emt 0:00:28]} 37. f4 {[%emt 0:01:21]} ({White should play} 37. fxe4 Qb7 38. Kg1) 37... Qb8 $1 $17 {[%emt 0:00:10]} 38. Bg5 {[%emt 0:01:19]} f6 {[%emt 0:00:23]} 39. f5 {[%emt 0:01:40]} gxf5 {[%emt 0:00:19]} (39... Bxf5 $6 40. Nxf5 fxg5 41. Qd5+ Kh7 42. Qf7 (42. Nxg7 Kxg7 43. Qxg5 Qa7 $11) 42... gxf5 43. Rd7 $11) 40. Bh4 {[%emt 0:00:00]} f4 {[%emt 0:00:00]} 41. Nd5 {[%emt 0:03:09][%mdl 8192] This costs White the game.} (41. Nc2 $17 {only move.}) 41... Qe5 $1 $19 {[%emt 0:20:31] ...e3 would be deadly.} 42. Nxf4 {[%emt 0:01:14] [#]} Bh6 $1 {[%emt 0:01:29]} 43. Rf1 {[%emt 0:08:25]} e3 {[%emt 0:01:27]} 44. Qc2 {[%emt 0:01:18] White wants to mate with Qg6+.} Bf5 {[%emt 0:00:35] Prevents Qg6+.} (44... Bxf4 $2 45. Qg6+ Kf8 46. Bxf6 $18) 45. Qe2 {[%emt 0:00:10]} Bxf4 {[%emt 0:03:25] A strong pair of Bishops.} 46. Qxc4+ {[%emt 0:00:09]} Be6 {[%emt 0:01:24]} 47. Qxf4 {[%emt 0:00:21]} e2 {[%emt 0:00:06] And now ...Ra8 would win. White is weak on the light squares} (47... Qxc3 48. Bxf6) 48. Rf3 {[%emt 0:00:24]} Rd8 {[%emt 0:13:11] ( -> ...Rd1+)} (48... e1=B 49. Qxe5 (49. Bxf6 $2 Qxf4 50. Rxf4 Bd7 $17) 49... fxe5 50. Bxe1 $16) (48... e1=Q+ $2 49. Bxe1 Qxe1+ 50. Rf1 Qxc3 51. Qxf6 Qxf6 52. Rxf6 $19) 49. h3 {[%emt 0:03:16] [#]} Rd1+ $1 {[%emt 0:00:18]} (49... e1=R+ 50. Bxe1 Qxe1+ 51. Kh2 $15 (51. Rf1 Qxc3 52. Qxf6 Qxf6 $17)) 50. Kh2 {[%emt 0:00:05]} e1=Q {[%emt 0:00:22]} (50... e1=B 51. Qxe5 fxe5 52. Bxe1 Rxe1 53. Rf6 $19) 51. Bxe1 {[%emt 0:00:25]} Rxe1 {[%emt 0:00:04]} (51... Qxe1 52. Qxf6 Qg1+ 53. Kg3 Qe1+ 54. Kh2 Qg1+ 55. Kg3 Qe1+ 56. Kh2 $11) 52. b5 {[%emt 0:07:18]} (52. Qg3+ $142 Kf7 53. Qxe5 Rxe5 54. Kg3) 52... Kf7 {[%emt 0:05:29]} (52... Qxb5 53. Qg3+ $16 (53. Qxf6 Qb1 $11) (53. Qxf6 Qb1 $11)) 53. Kg3 $2 {[%emt 0:05:37]} (53. Rf2) 53... h4+ {[%emt 0:02:55]} ({Stronger than} 53... Qxb5 54. Qxf6+ Ke8 55. Kh4 $17 (55. Qh8+ Kd7 $17)) 54. Kh2 {[%emt 0:00:36]} Kg6 {[%emt 0:00:39] Weighted Error Value: White=0.30/Black=0.09 (flawless)} ({Inferior is} 54... Qxb5 55. Qxf6+ Ke8 56. Qxh4 (56. Qh8+ Kd7 $15) 56... Qe5+ 57. Qg3 $15) 0-1

[Event "UK vs Ukraine Challenge Match 2023"]
[Site "London"]
[Date "2023.03.24"]
[Round "3.1"]
[White "Volokitin, Andrei"]
[Black "Adams, Michael"]
[Result "1/2-1/2"]
[ECO "C54"]
[WhiteElo "2665"]
[BlackElo "2687"]
[Annotator "TA"]
[PlyCount "79"]
[EventDate "2023.03.15"]
[EventType "match"]
[EventCountry "ENG"]
[SourceTitle "playchess.com"]
[Source "ChessBase"]
[SourceQuality "1"]
[TimeControl "40/6000+30:3000+30"]

{[%evp 12,79,15,21,19,10,13,19,21,1,13,8,26,15,12,13,10,11,10,16,16,23,24,28,30,14,23,25,16,18,19,20,23,25,41,43,41,41,43,43,33,25,53,14,18,13,11,0,0,0,0,0,6,6,9,6,14,6,8,0,0,0,0,0,0,0,0,0,0,0]} 1. e4 {[%emt 0:00:03]} e5 {[%emt 0:00:07]} 2. Nf3 {[%emt 0:00:06]} Nc6 {[%emt 0:00:04]} 3. Bc4 {[%emt 0:00:11]} Bc5 {[%emt 0:00:08]} 4. O-O {[%emt 0:00:24]} Nf6 {[%emt 0:00:11]} 5. d3 {[%emt 0:00:11]} d6 {[%emt 0:00:08]} 6. c3 {[%emt 0:00:10]} O-O {[%emt 0:00:07]} 7. Re1 {[%emt 0:00:16] is the new trend.} Bb6 {[%emt 0:00:09] C54: Giuoco Piano: 4 c3 Nf6, main lines with 5 d4 and 5 d3.} 8. h3 {[%emt 0:03:21]} h6 {[%emt 0:01:33]} 9. Nbd2 {[%emt 0:00:49][%cal Bb1d2,Bd2f1,Bf1g3][%mdl 32]} Ne7 {[%emt 0:00:27]} 10. a4 {[%emt 0:00:45] [#] Hoping for a5.} a5 {[%emt 0:00:18]} 11. Bb3 {[%emt 0:02:26]} c6 {[%emt 0:01:25]} 12. Nf1 {[%emt 0:00:29]} Ng6 {[%emt 0:00:30]} 13. Ng3 {[%emt 0:00:29]} d5 {[%emt 0:01:09]} 14. exd5 {[%emt 0:00:34]} Nxd5 {[%emt 0:00:09]} 15. d4 {[%emt 0:00:08]} exd4 {[%emt 0:00:09]} 16. Nxd4 {[%emt 0:00:05]} Re8 {[%emt 0:06:27]} 17. Rxe8+ {[%emt 0:06:47]} Qxe8 {[%emt 0:00:02]} 18. Bxd5 {[%emt 0:00:12]} cxd5 {[%emt 0:00:11]} 19. Be3 {[%emt 0:00:08]} Bc7 {[%emt 0:01:23] [#] White must now prevent ...Bxg3.} 20. Qd3 $146 {[%emt 0:36:17]} ({Predecessor:} 20. Qd2 Bd7 21. b3 Bxg3 22. fxg3 Qe5 23. Qf2 Rc8 24. Rf1 f6 25. Re1 Qd6 26. Nf5 Bxf5 27. Qxf5 {½-½ Vidit,S (2727)-Esipenko,A (2714) Tata Steel-A 84th 2022 (4)}) 20... Bxg3 {[%emt 0:12:56]} 21. fxg3 {[%emt 0:00:09]} Bd7 {[%emt 0:01:18]} 22. b3 {[%emt 0:06:25]} Qe5 {[%emt 0:04:12]} 23. Bf2 {[%emt 0:03:08]} Re8 {[%emt 0:00:38]} 24. Re1 {[%emt 0:03:08]} Qb8 {[%emt 0:07:19]} 25. Rxe8+ {[%emt 0:01:31]} Qxe8 {[%emt 0:00:31]} 26. Nb5 {[%emt 0:10:28]} Qe5 {[%emt 0:04:39]} 27. Kh2 {[%emt 0:17:20]} (27. Qd4 {feels hotter.} Qe2 28. Qb6 Bf5 29. Qxb7 Ne5 30. Qxd5 Bxh3 31. c4) 27... Ne7 {[%emt 0:16:35] The position is equal.} 28. Bd4 {[%emt 0:00:59]} Qe6 {[%emt 0:03:37]} 29. g4 {[%emt 0:08:17]} f5 {[%emt 0:08:11]} 30. gxf5 {[%emt 0:01:47]} Nxf5 {[%emt 0:01:02]} 31. Bf2 {[%emt 0:01:19]} Qe5+ {[%emt 0:05:18]} 32. Kg1 {[%emt 0:00:22]} Kh8 {[%emt 0:00:46]} 33. Nd4 {[%emt 0:02:28]} Kg8 {[%emt 0:05:38]} (33... Nxd4 {simplifies} 34. Qxd4 Qxd4 35. Bxd4 b5) 34. Qe2 {[%emt 0:04:22]} (34. Ne2 {simplifies} Be8 35. Qd2 Bc6 36. g4) 34... Qf4 {[%emt 0:07:51]} 35. Qf3 {[%emt 0:00:37]} Qxf3 {[%emt 0:01:30]} 36. Nxf3 {[%emt 0:00:02]} b5 {[%emt 0:00:25]} 37. axb5 {[%emt 0:00:40]} Bxb5 {[%emt 0:00:05]} 38. Nd4 {[%emt 0:01:02]} Nxd4 {[%emt 0:00:06]} 39. Bxd4 {[%emt 0:00:03]} a4 {[%emt 0:00:05]} 40. bxa4 {[%emt 0:00:00] Weighted Error Value: White=0.04 (flawless) /Black=0.03 (flawless)} 1/2-1/2

[Event "UK vs Ukraine Challenge Match 2023"]
[Site "London"]
[Date "2023.03.25"]
[Round "4.1"]
[White "Adams, Michael"]
[Black "Volokitin, Andrei"]
[Result "1-0"]
[ECO "B53"]
[WhiteElo "2687"]
[BlackElo "2665"]
[Annotator "TA"]
[PlyCount "79"]
[EventDate "2023.03.15"]
[EventType "match"]
[EventCountry "ENG"]
[SourceTitle "playchess.com"]
[Source "ChessBase"]
[SourceQuality "1"]
[TimeControl "40/6000+30:3000+30"]

{[%evp 9,79,1,12,2,0,0,0,0,0,0,0,0,25,32,35,0,0,0,0,0,0,0,0,0,43,46,32,32,42,33,40,40,71,56,249,230,249,243,257,247,246,246,251,237,221,218,292,297,292,281,281,279,439,438,433,430,460,451,446,407,1337,1319,1156,1154,1109,1018,1508,549,533,466,829,919]} 1. e4 {[%emt 0:00:05]} c5 {[%emt 0:00:05]} 2. Nf3 {[%emt 0:00:05]} d6 {[%emt 0:00:05]} 3. d4 {[%emt 0:00:07]} cxd4 {[%emt 0:00:06]} 4. Qxd4 {[%emt 0:00:04]} Nf6 {[%emt 0:00:25]} 5. Be2 {[%emt 0:00:20]} Nc6 {[%emt 0:02:40]} 6. Qe3 {[%emt 0:00:14] B53: Sicilian: 2...d6: Lines with Qxd4.} g6 {[%emt 0:11:52]} 7. O-O {[%emt 0:00:11]} Bg7 {[%emt 0:00:05]} 8. Rd1 {[%emt 0:00:06] The position is equal.} O-O {[%emt 0:01:02]} 9. Nc3 {[%emt 0:00:11]} Ng4 {[%emt 0:38:04]} 10. Qg5 {[%emt 0:00:58]} Bxc3 {[%emt 0:05:55]} 11. bxc3 {[%emt 0:00:26]} Qa5 {[%emt 0:00:46]} 12. Qh4 {[%emt 0:23:44] [#]} (12. Nd4 $5 {[%cal Rd4c6]}) 12... Qxc3 $146 {[%emt 0:03:14]} ({Predecessor:} 12... f6 13. Bd2 Qc7 14. Nd4 Nge5 15. f4 Nxd4 16. cxd4 Nc4 17. Bc1 Bd7 18. Qg3 Rac8 {1-0 Gallagher,D (2204)-White,S (2041) BCF-chT 2122 (4NCL) 2021 (1.125)}) 13. Bd2 {[%emt 0:01:37]} (13. Ng5 $2 h6 $19) 13... Qf6 {[%emt 0:07:00] [#] Strongly threatening ...Nd4.} 14. Bg5 {[%emt 0:11:44]} Qe6 {[%emt 0:02:16]} 15. Nd4 {[%emt 0:05:10]} Nxd4 {[%emt 0:02:53]} (15... Qxe4 $2 16. Bf3 Qe5 17. Nxc6 bxc6 18. Bxg4 $18) 16. Rxd4 {[%emt 0:00:03]} h6 {[%emt 0:07:53]} 17. Bxe7 {[%emt 0:08:45] A strong pair of Bishops.} g5 {[%emt 0:00:14]} 18. Qxg4 {[%emt 0:00:32]} Qxe7 {[%emt 0:00:18]} (18... Qe5 19. Qh5 Qxd4 20. Rd1 $16) 19. Qh5 {[%emt 0:01:11]} (19. Qg3 {simplifies} Qe5 20. Rad1 Be6 21. Rxd6 Qxg3 22. hxg3 Bxa2 23. Rxh6 a5 24. e5) 19... Kg7 {[%emt 0:01:51]} 20. Rad1 {[%emt 0:01:14]} Rd8 {[%emt 0:14:18]} 21. f4 {[%emt 0:12:49][%cal Bf2f4,Bf4f5][%mdl 32] White has more active pieces.} Be6 {[%emt 0:08:40] [#] Black cannot hold the game after this.} (21... gxf4 $14 22. e5 {[%mdl 64] Discovered Attack} Qg5) 22. f5 $1 $18 {[%emt 0:05:02]} Bxa2 {[%emt 0:00:38]} 23. Ra4 {[%emt 0:01:11][%mdl 64] Trapped Piece} d5 {[%emt 0:00:23] Black is weak on the light squares} 24. Rxa2 {[%emt 0:05:41]} dxe4 {[%emt 0:00:03]} 25. Rf1 {[%emt 0:00:47] f6+ would be deadly.} Qf6 {[%emt 0:00:12]} 26. Qg4 {[%emt 0:03:22]} Re8 {[%emt 0:01:03]} 27. Ra4 {[%emt 0:02:24]} e3 {[%emt 0:00:49]} 28. Qf3 {[%emt 0:01:31]} Re7 {[%emt 0:00:44]} 29. Ra3 {[%emt 0:03:32]} Rc8 {[%emt 0:00:29]} 30. c4 {[%emt 0:01:03]} ({Resist} 30. Rxe3 $6 Rxe3 31. Qxe3 Rxc2 $16) 30... Rc6 {[%emt 0:00:50]} (30... b6 $142 31. Rxe3 Rxe3 32. Qxe3 a5) 31. Rxa7 {[%emt 0:01:21]} ({Weaker is} 31. Rxe3 Qd4 32. Kf2 (32. f6+ Rxf6 33. Qxf6+ Qxf6 $16) 32... Qh4+ 33. Qg3 Qd4 $18) 31... Rb6 {[%emt 0:00:31]} 32. Ra3 {[%emt 0:02:17][%cal Ba7a3,Ba3d3,Bd3d5][%mdl 32]} Qe5 {[%emt 0:00:03]} 33. Rd3 {[%emt 0:02:18]} Rf6 {[%emt 0:00:12]} 34. h4 {[%emt 0:02:14]} gxh4 {[%emt 0:00:54]} (34... Qe4 $142 35. Qxe4 Rxe4 36. hxg5 hxg5) 35. Qg4+ {[%emt 0:01:12] White is clearly winning.} Kh7 {[%emt 0:00:03]} 36. Qxh4 {[%emt 0:02:44]} Re8 {[%emt 0:00:19] Against Rd8} 37. Rd5 {[%emt 0:01:26]} Qb2 {[%emt 0:00:03]} 38. Re1 {[%emt 0:01:18]} (38. Rd4 $142 Qb6 39. c5) 38... Rg8 {[%emt 0:00:43]} 39. Qd4 {[%emt 0:01:05]} Qb4 {[%emt 0:01:44]} (39... Qxd4 $142 40. Rxd4 Kg7) 40. Rd1 {[%emt 0:00:00] Weighted Error Value: White=0.18 (very precise) /Black=0.25 (precise)} 1-0

[Event "UK vs Ukraine Challenge Match 2023"]
[Site "London"]
[Date "2023.03.27"]
[Round "5.1"]
[White "Volokitin, Andrei"]
[Black "Adams, Michael"]
[Result "1-0"]
[ECO "C54"]
[WhiteElo "2665"]
[BlackElo "2687"]
[Annotator "TA"]
[PlyCount "83"]
[EventDate "2023.03.15"]
[EventType "match"]
[EventCountry "ENG"]
[SourceTitle "playchess.com"]
[Source "ChessBase"]
[SourceQuality "1"]
[TimeControl "40/6000+30:3000+30"]

{[%evp 13,83,2,19,18,21,6,26,0,6,0,0,0,0,-28,-14,-22,0,-4,61,0,0,0,46,53,44,30,46,46,55,25,25,27,27,27,28,27,58,68,62,59,220,201,226,241,354,321,344,337,348,335,350,331,385,392,381,370,368,366,368,344,480,489,492,485,480,518,495,497,494,491,529,447]} 1. e4 {[%emt 0:00:06]} e5 {[%emt 0:00:07]} 2. Nf3 {[%emt 0:00:09]} Nc6 {[%emt 0:00:07]} 3. Bc4 {[%emt 0:00:13]} Bc5 {[%emt 0:00:08]} 4. O-O {[%emt 0:00:11]} Nf6 {[%emt 0:00:07]} 5. d3 {[%emt 0:00:04]} O-O {[%emt 0:00:07]} 6. h3 {[%emt 0:00:08]} d6 {[%emt 0:00:44]} 7. c3 {[%emt 0:00:17]} Bb6 {[%emt 0:02:01] Recently 7...a5 got a lot of attention.} 8. Re1 {[%emt 0:00:19] C54: Giuoco Piano: 4 c3 Nf6, main lines with 5 d4 and 5 d3.} h6 {[%emt 0:00:09]} 9. Nbd2 {[%emt 0:00:15]} Ne7 {[%emt 0:00:09]} 10. a4 {[%emt 0:00:19] And now a5 would win. White has an edge.} a5 {[%emt 0:00:19]} 11. d4 {[%emt 0:00:24]} Nc6 {[%emt 0:00:15][%cal Re5d4]} 12. Ra3 {[%emt 0:00:09]} Re8 {[%emt 0:02:16][%cal Re5d4]} 13. Ba2 {[%emt 0:00:21] [#]} (13. Qb3 $5 {[%cal Rc4f7]} Rf8 14. dxe5 Nxe5 15. Nxe5 dxe5 16. Nf3 $11) 13... Ba7 $146 {[%emt 0:01:20]} ({Predecessor:} 13... Bd7 14. Bb1 exd4 15. cxd4 Nxd4 16. Nxd4 Bxd4 17. Rd3 Bc5 18. e5 Rxe5 19. Rxe5 dxe5 {½-½ Vidit,S (2714)-Oparin,G (2683) Chess.com Rapid Wk21 Swiss 2022 (6)}) 14. Rb3 {[%emt 0:03:51]} (14. Qb3 $5 {[%cal Rb3f7]}) 14... Rb8 {[%emt 0:10:57]} 15. Bb1 {[%emt 0:02:13]} Bd7 {[%emt 0:11:47]} (15... exd4 $11 16. cxd4 Nxd4 17. Nxd4 Bxd4) 16. Nc4 {[%emt 0:33:17]} (16. Nf1 $1 $14) 16... exd4 $11 {[%emt 0:05:44]} 17. cxd4 {[%emt 0:00:08]} Nb4 {[%emt 0:13:38]} (17... d5 $11 18. exd5 Nxd5) 18. Rbe3 $14 {[%emt 0:21:47]} b5 {[%emt 0:07:53]} 19. axb5 {[%emt 0:05:14]} Bxb5 {[%emt 0:01:22]} 20. Nxa5 {[%emt 0:09:03][%cal Bc4a5,Ba5b3,Bb3d2,Bd2e4,Be4c3][%mdl 32]} c5 {[%emt 0:02:52][%cal Bc7c5,Bc5c4][%mdl 32]} 21. Ra3 {[%emt 0:02:48][%cal Oa5c4]} (21. Nh4 $5 {[%cal Re3g3]}) 21... Bb6 $1 {[%emt 0:03:49]} 22. Nb3 {[%emt 0:04:07]} c4 {[%emt 0:00:17]} 23. Nbd2 {[%emt 0:01:31]} Nd3 {[%emt 0:02:39]} 24. Re3 {[%emt 0:00:19]} Rc8 {[%emt 0:10:49]} 25. b3 {[%emt 0:07:57]} d5 {[%emt 0:01:32][%cal Rd5e4]} 26. e5 {[%emt 0:02:01] aiming for bxc4.} Nh5 $2 {[%emt 0:03:44] Loses the game.} ({Black should play} 26... Ne4 $1 $14) 27. bxc4 $18 {[%emt 0:03:14][%mdl 64] Deflection} dxc4 {[%emt 0:00:08] [#]} 28. Ne4 $1 {[%emt 0:00:13] Strongly threatening Nd6.} Re6 {[%emt 0:04:36]} (28... Nxe5 {is a better defense.} 29. Nxe5 Rxe5) 29. Nc3 {[%emt 0:02:54]} Bd7 {[%emt 0:03:24]} 30. Bxd3 {[%emt 0:10:05]} cxd3 {[%emt 0:00:03]} 31. Rxd3 {[%emt 0:00:02]} Rg6 {[%emt 0:00:07]} 32. Kh2 {[%emt 0:00:20]} ({But not} 32. g4 Ba5 33. e6 Rxe6 34. gxh5 Re8) 32... Bf5 {[%emt 0:01:29] [#]} 33. g4 $1 {[%emt 0:00:12][%cal Bg2g4,Bg4g5][%mdl 32]} Bxd3 {[%emt 0:04:22]} 34. Qxd3 {[%emt 0:00:28]} Nf6 {[%emt 0:05:17]} 35. exf6 {[%emt 0:00:05]} Rxf6 {[%emt 0:00:16]} 36. Kg2 {[%emt 0:00:11]} h5 {[%emt 0:01:23]} 37. g5 {[%emt 0:01:04] White is clearly winning.} ({Don't take} 37. gxh5 Qd7 38. Qe4 Re6 $18) 37... Re6 {[%emt 0:01:14]} 38. Bf4 {[%emt 0:00:19]} Bc5 {[%emt 0:02:06]} 39. Rb3 {[%emt 0:00:30]} Bd6 {[%emt 0:01:01]} 40. Bxd6 {[%emt 0:00:00]} Qxd6 {[%emt 0:00:00]} 41. Ne4 {[%emt 0:11:26]} Qd5 {[%emt 0:01:37]} 42. Ng3 {[%emt 0:01:21] Weighted Error Value: White=0.04 (flawless) /Black=0.27 (precise)} 1-0